bitfinex-derivatives/quotes_BTCF0:USTF0_20250711
["timestamp","ask_amount","ask_price","bid_price","bid_amount"]
[1752269708861,0.30614127,117850.0,117840.0,1.87255048]
[1752269720970,0.28173127,117850.0,117840.0,1.87255048]
[1752269721170,0.06968337,117850.0,117840.0,2.23335048]
[1752269721366,0.23931577,117850.0,117840.0,2.23335048]
[1752269721578,0.26314577,117850.0,117840.0,2.23335048]
[1752269727882,0.06968337,117850.0,117840.0,2.23335048]
[1752269728080,0.23931577,117850.0,117840.0,2.23335048]
[1752269731480,0.23831577,117850.0,117840.0,2.23335048]
[1752269731682,0.23931577,117850.0,117840.0,2.23335048]
[1752269732982,0.26314577,117850.0,117840.0,2.23335048]
[1752269734184,0.26314577,117850.0,117840.0,1.6346166]
[1752269734387,0.26314577,117850.0,117840.0,2.23335048]
[1752269734789,0.26314577,117850.0,117840.0,1.6346166]
[1752269734990,0.26314577,117850.0,117840.0,2.23335048]
[1752269735387,0.29430577,117850.0,117840.0,2.23335048]
[1752269737489,0.2759024,117850.0,117840.0,1.87255048]
[1752269737693,0.29450205,117850.0,117840.0,1.87255048]
[1752269742994,0.29450205,117850.0,117840.0,1.2738166]
[1752269743197,0.29450205,117850.0,117840.0,1.87255048]
[1752269744300,1.50403593,117850.0,117840.0,0.5]
[1752269744499,1.75237898,117850.0,117840.0,0.5]
[1752269744792,1.75237898,117850.0,117840.0,0.45]
[1752269744996,0.2008068,117840.0,117830.0,0.59988718]
[1752269745197,0.2008068,117840.0,117830.0,0.01640718]
[1752269745198,1.31095835,117840.0,117830.0,0.01640718]
[1752269745502,1.25005033,117840.0,117830.0,0.59988718]
[1752269745698,1.32592066,117840.0,117830.0,0.59988718]
[1752269746089,2.0450156,117840.0,117830.0,0.01640718]
[1752269746295,0.2481156,117820.0,117810.0,0.08351181]
[1752269746596,1.61158913,117820.0,117810.0,0.66695181]
[1752269746794,1.41236474,117820.0,117810.0,0.66695181]
[1752269748901,1.41236474,117820.0,117810.0,0.66795181]
[1752269766911,1.61210659,117820.0,117810.0,0.66795181]
[1752269771226,1.61210659,117820.0,117810.0,0.70117181]
[1752269771824,0.89050659,117820.0,117810.0,0.70117181]
[1752269772123,0.6700567,117820.0,117810.0,1.23849728]
[1752269772323,0.96968237,117820.0,117810.0,1.06880748]
[1752269772524,0.96968237,117820.0,117810.0,1.23849728]
[1752269773615,0.96968237,117820.0,117810.0,1.73849728]
[1752269774420,0.96968237,117820.0,117810.0,1.56880748]
[1752269774621,1.03059556,117820.0,117810.0,1.73849738]
[1752269792042,1.03059556,117820.0,117810.0,1.56880748]
[1752269792244,1.03059556,117820.0,117810.0,1.73849738]
[1752269796944,1.03059556,117820.0,117810.0,1.7222002]
[1752269798446,1.03059556,117820.0,117810.0,1.7222003]
[1752269801649,1.03059556,117820.0,117810.0,1.42257463]
[1752269801849,1.03059556,117820.0,117810.0,1.7222003]
[1752269804346,0.96968237,117820.0,117810.0,1.42257463]
[1752269804544,0.96968237,117820.0,117810.0,1.7222003]
[1752269807650,1.03059556,117820.0,117810.0,1.7222003]
[1752269813650,1.03059556,117820.0,117810.0,1.25288463]
[1752269813858,1.33022123,117820.0,117810.0,1.5525103]
[1752269814261,1.33022123,117820.0,117810.0,1.7222003]
[1752269814458,1.03059556,117820.0,117810.0,1.7222003]
[1752269814657,1.33022123,117820.0,117810.0,1.7222003]
[1752269815761,1.33022123,117820.0,117810.0,1.5525103]
[1752269816054,1.33022123,117820.0,117810.0,1.7222003]
[1752269816854,1.33022123,117820.0,117810.0,0.60143463]
[1752269817057,1.33022123,117820.0,117810.0,1.18403463]
[1752269818061,1.33022123,117820.0,117810.0,0.68403463]
[1752269818554,0.271,117810.0,117800.0,0.00173772]
[1752269818860,1.31056418,117810.0,117800.0,0.00173772]
[1752269820255,1.24965099,117810.0,117800.0,0.00373772]
[1752269820460,1.32552132,117810.0,117800.0,0.00373772]
[1752269821960,1.32552132,117810.0,117800.0,0.00473772]
[1752269822159,1.24965099,117810.0,117800.0,0.00473772]
[1752269822464,1.25165099,117810.0,117800.0,0.00273772]
[1752269822665,1.25265099,117810.0,117800.0,0.00173772]
[1752269823264,1.313527,117810.0,117800.0,0.00173772]
[1752269824062,1.25265099,117810.0,117800.0,0.00173772]
[1752269824274,1.31351545,117810.0,117800.0,0.00173772]
[1752269824574,1.25265099,117810.0,117800.0,0.00173772]
[1752269825874,1.31350436,117810.0,117800.0,0.00173772]
[1752269826075,1.25265099,117810.0,117800.0,0.00173772]
[1752269826376,1.31349849,117810.0,117800.0,0.00173772]
[1752269830968,1.89605849,117810.0,117800.0,0.00173772]
[1752269836278,1.83521099,117810.0,117800.0,0.00173772]
[1752269838180,1.89603806,117810.0,117800.0,0.00173772]
[1752269839692,1.90099806,117810.0,117800.0,0.00173772]
[1752269842487,1.91604132,117810.0,117800.0,0.00173772]
[1752269844592,0.2028086,117790.0,117780.0,0.17064446]
[1752269844790,0.90433392,117790.0,117780.0,0.17064446]
[1752269844995,0.65095825,117790.0,117780.0,0.17064446]
[1752269845188,0.95058392,117790.0,117780.0,0.34037746]
[1752269846494,0.65095825,117790.0,117780.0,0.34037746]
[1752269846694,0.95058392,117790.0,117780.0,0.34337746]
[1752269847096,0.65095825,117790.0,117780.0,0.64300313]
[1752269847297,0.95058392,117790.0,117780.0,0.64300313]
[1752269847498,0.95058392,117790.0,117780.0,0.34337746]
[1752269847696,0.95058392,117790.0,117780.0,0.17364446]
[1752269848095,0.65095825,117790.0,117780.0,0.17364446]
[1752269848296,0.95058392,117790.0,117780.0,0.47327013]
[1752269848597,1.01145709,117790.0,117780.0,0.47327013]
[1752269848796,1.01145709,117790.0,117780.0,0.64300313]
[1752269848996,1.01145709,117790.0,117780.0,0.34337746]
[1752269849296,1.01145709,117790.0,117780.0,0.64300313]
[1752269850798,0.71183142,117790.0,117780.0,0.64300313]
[1752269850998,1.01145709,117790.0,117780.0,0.34337746]
[1752269851198,0.71183142,117790.0,117780.0,0.34337746]
[1752269851401,1.01145709,117790.0,117780.0,0.17364446]
[1752269851696,1.01145709,117790.0,117780.0,0.34337746]
[1752269852499,0.35103142,117790.0,117780.0,0.34337746]
[1752269852699,1.01145709,117790.0,117780.0,0.34337746]
[1752269852897,1.01145709,117790.0,117780.0,0.64300313]
[1752269853501,0.71183142,117790.0,117780.0,0.64300313]
[1752269853898,1.01145709,117790.0,117780.0,0.62291313]
[1752269854401,0.71183142,117790.0,117780.0,0.62291313]
[1752269854703,0.95058392,117790.0,117780.0,0.62291313]
[1752269854901,0.95058392,117790.0,117780.0,0.32328746]
[1752269855204,0.65095825,117790.0,117780.0,0.32328746]
[1752269855501,0.95058392,117790.0,117780.0,0.32328746]
[1752269856305,0.65095825,117790.0,117780.0,0.32328746]
[1752269856505,0.95058392,117790.0,117780.0,0.32328746]
[1752269856705,0.95058392,117790.0,117780.0,0.15355446]
[1752269857005,0.65095825,117790.0,117780.0,0.15355446]
[1752269857207,0.95058392,117790.0,117780.0,0.15355446]
[1752269857707,0.65095825,117790.0,117780.0,0.32328746]
[1752269857896,0.95058392,117790.0,117780.0,0.32328746]
[1752269858100,0.95058392,117790.0,117780.0,0.62291313]
[1752269858806,0.65095825,117790.0,117780.0,0.62291313]
[1752269859007,0.95058392,117790.0,117780.0,0.15355446]
[1752269859207,0.95058392,117790.0,117780.0,0.45318013]
[1752269859711,0.65095825,117790.0,117780.0,0.45318013]
[1752269859903,0.95058392,117790.0,117780.0,0.45318013]
[1752269861110,0.95058392,117790.0,117780.0,0.62291313]
[1752269861409,0.65095825,117790.0,117780.0,0.62291313]
[1752269861604,0.95058392,117790.0,117780.0,0.62291313]
[1752269863209,1.01145709,117790.0,117780.0,0.62291313]
[1752269864199,1.01145709,117790.0,117780.0,0.45318013]
[1752269864510,0.95058392,117790.0,117780.0,0.45318013]
[1752269864706,0.95058392,117790.0,117780.0,0.62291313]
[1752269867508,1.01145709,117790.0,117780.0,0.62291313]
[1752269868407,1.01145709,117790.0,117780.0,0.32328746]
[1752269869414,0.95058392,117790.0,117780.0,0.32328746]
[1752269869713,0.65095825,117790.0,117780.0,0.32328746]
[1752269869913,0.95058392,117790.0,117780.0,0.32328746]
[1752269871113,0.29015825,117790.0,117780.0,1.00380313]
[1752269871412,0.58978392,117790.0,117780.0,1.00380313]
[1752269871617,0.58978392,117790.0,117780.0,1.3034288]
[1752269871618,0.29015825,117790.0,117780.0,1.3034288]
[1752269871914,0.01859965,117790.0,117780.0,1.37397746]
[1752269872113,0.18831825,117790.0,117780.0,1.9732288]
[1752269873913,0.24458825,117790.0,117780.0,1.60840313]
[1752269874114,2.85339492,117790.0,117780.0,0.46191937]
[1752269874413,0.1746574,117770.0,117760.0,0.0016983]
[1752269874720,0.1746574,117770.0,117760.0,1.13358672]
[1752269874721,1.9072038,117770.0,117760.0,1.13358672]
[1752269874916,2.01341061,117770.0,117760.0,1.02631079]
[1752269875116,1.93754028,117770.0,117760.0,1.02044642]
[1752269875417,1.9093413,117770.0,117760.0,1.02044642]
[1752269875814,1.9093413,117770.0,117760.0,0.98766982]
[1752269876009,2.0791733,117770.0,117760.0,0.96049252]
[1752269876211,2.0791733,117770.0,117760.0,0.93227322]
[1752269876807,1.98029659,117770.0,117760.0,0.93227322]
[1752269877716,1.01046429,117770.0,117760.0,0.90583712]
[1752269877914,1.73645676,117770.0,117760.0,0.90583712]
[1752269878515,1.80114394,117770.0,117760.0,0.90583712]
[1752269879713,1.74045676,117770.0,117760.0,0.84479752]
[1752269879919,1.81646459,117770.0,117760.0,0.73961792]
[1752269880118,1.41646444,117770.0,117760.0,0.66219722]
[1752269880426,1.81646459,117770.0,117760.0,0.54572052]
[1752269880721,0.084891,117750.0,117730.0,1.22189]
[1752269881022,0.93059075,117740.0,117730.0,1.2457]
[1752269881217,0.9491904,117740.0,117730.0,1.2457]
[1752269881812,0.9491904,117740.0,117730.0,2.4507]
[1752269882921,0.9491904,117740.0,117730.0,2.4517]
[1752269883123,0.9491904,117740.0,117730.0,2.4527]
[1752269887226,0.54919025,117740.0,117730.0,2.4527]
[1752269887425,0.9491904,117740.0,117730.0,2.4527]
[1752269887719,0.54919025,117740.0,117730.0,2.4527]
[1752269887927,0.9491904,117740.0,117730.0,2.4527]
[1752269888525,0.54919025,117740.0,117730.0,2.4527]
[1752269888825,0.9491904,117740.0,117730.0,2.4527]
[1752269892018,0.9491904,117740.0,117730.0,1.2789]
[1752269892218,0.9491904,117740.0,117730.0,0.0739]
[1752269892524,0.9491904,117740.0,117730.0,0.002]
[1752269893729,0.55019025,117740.0,117730.0,0.001]
[1752269893926,0.9501904,117740.0,117730.0,0.001]
[1752269895730,0.55019025,117740.0,117730.0,0.0729]
[1752269896130,0.9501904,117740.0,117730.0,0.0729]
[1752269897825,0.55019025,117740.0,117730.0,0.001]
[1752269898129,1.01084637,117740.0,117730.0,0.001]
[1752269898328,0.61084622,117740.0,117730.0,0.001]
[1752269898632,1.01084637,117740.0,117730.0,0.001]
[1752269898834,0.1698046,117730.0,117720.0,1.28225887]
[1752269899023,0.96693512,117730.0,117720.0,1.28225887]
[1752269899328,1.02759109,117730.0,117720.0,1.28225887]
[1752269902729,0.169819,117720.0,117710.0,0.0525706]
[1752269903031,0.9492188,117720.0,117710.0,0.72027]
[1752269903435,1.10250663,117720.0,117710.0,0.67439122]
[1752269904034,1.10250663,117720.0,117710.0,0.67539122]
[1752269904234,1.15546561,117720.0,117710.0,0.60657277]
[1752269904434,1.55546576,117720.0,117710.0,0.64338329]
[1752269904635,1.15546561,117720.0,117710.0,0.03203]
[1752269904836,0.75546546,117720.0,117710.0,0.64867]
[1752269905138,1.0492588,117720.0,117710.0,0.64867]
[1752269905534,1.44925895,117720.0,117710.0,0.64867]
[1752269905833,0.1698623,117690.0,117680.0,1.17601945]
[1752269906139,1.0296121,117690.0,117680.0,1.79361945]
[1752269906339,1.0296121,117690.0,117680.0,2.36405945]
[1752269906538,1.0296121,117690.0,117680.0,2.36883334]
[1752269906735,0.62961195,117690.0,117680.0,2.36883334]
[1752269906936,1.0296121,117690.0,117680.0,2.36883334]
[1752269907337,1.0533721,117690.0,117680.0,1.19451334]
[1752269907641,1.11513543,117690.0,117680.0,0.49908555]
[1752269907843,0.2730012,117670.0,117660.0,0.65423]
[1752269908038,1.052401,117670.0,117660.0,0.72050393]
[1752269908942,1.052401,117670.0,117660.0,0.65423]
[1752269909237,1.01320085,117670.0,117660.0,0.65723]
[1752269909436,1.07394948,117670.0,117660.0,0.68096]
[1752269909640,1.47394963,117670.0,117660.0,0.72767]
[1752269910637,1.07394948,117670.0,117660.0,0.10447]
[1752269910842,1.47394963,117670.0,117660.0,0.72923]
[1752269911037,1.47582956,117670.0,117660.0,0.72923]
[1752269911238,1.30593836,117670.0,117640.0,0.36250003]
[1752269911439,1.03383015,117650.0,117640.0,0.10317003]
[1752269911637,0.67181307,117650.0,117640.0,0.10317003]
[1752269911845,0.7325617,117650.0,117640.0,0.10317003]
[1752269912041,1.13256185,117650.0,117640.0,0.10317003]
[1752269912238,1.13256185,117650.0,117640.0,0.73109003]
[1752269912440,1.13235816,117650.0,117640.0,0.73109003]
[1752269912944,1.07381322,117650.0,117640.0,0.73109003]
[1752269913142,1.14976755,117650.0,117640.0,0.73109003]
[1752269913543,0.67381307,117650.0,117640.0,0.73109003]
[1752269913738,1.07381322,117650.0,117640.0,0.73057003]
[1752269914239,1.14976755,117650.0,117640.0,0.73057003]
[1752269914539,1.07381322,117650.0,117640.0,0.73057003]
[1752269915043,1.07381322,117650.0,117640.0,0.73598223]
[1752269915242,0.67381307,117650.0,117640.0,0.73598223]
[1752269915442,1.07381322,117650.0,117640.0,0.73598223]
[1752269917246,1.13420578,117650.0,117640.0,0.73598223]
[1752269918145,1.13420578,117650.0,117640.0,0.68927223]
[1752269918542,0.73420563,117650.0,117640.0,0.68927223]
[1752269918846,1.13420578,117650.0,117640.0,0.68927223]
[1752269919146,1.07381322,117650.0,117640.0,0.68939447]
[1752269920043,1.07381322,117650.0,117640.0,0.63463447]
[1752269920550,1.07381322,117650.0,117640.0,7e-08]
[1752269920551,1.53420593,117650.0,117640.0,7e-08]
[1752269920749,2.16220593,117650.0,117640.0,7e-08]
[1752269921250,1.70181322,117650.0,117640.0,7e-08]
[1752269921442,1.36695417,117650.0,117640.0,7e-08]
[1752269921649,2.10656191,117650.0,117640.0,7e-08]
[1752269921949,1.70656176,117650.0,117640.0,7e-08]
[1752269922146,2.10656191,117650.0,117640.0,7e-08]
[1752269922548,1.72656161,117650.0,117640.0,7e-08]
[1752269922748,2.52656191,117650.0,117640.0,7e-08]
[1752269923253,2.27656191,117650.0,117640.0,7e-08]
[1752269923553,0.2730444,117640.0,117630.0,4e-05]
[1752269923747,1.45432428,117640.0,117630.0,4e-05]
[1752269924946,0.65432398,117640.0,117630.0,4e-05]
[1752269925151,1.45432428,117640.0,117630.0,4e-05]
[1752269925648,1.28438988,117640.0,117610.0,0.02373]
[1752269925849,0.1699776,117610.0,117600.0,0.67601061]
[1752269926050,0.1699776,117610.0,117600.0,0.73077061]
[1752269926051,1.03503775,117610.0,117600.0,0.73077061]
[1752269927849,0.2189166,117590.0,117580.0,0.39956505]
[1752269928155,0.65465903,117590.0,117580.0,0.08328505]
[1752269928456,1.05465918,117590.0,117580.0,0.08328505]
[1752269928955,1.05465918,117590.0,117580.0,0.03876505]
[1752269929750,1.05465918,117590.0,117580.0,0.23675605]
[1752269929751,0.65465903,117590.0,117580.0,0.23675605]
[1752269929951,0.18783903,117590.0,117580.0,0.6812762]
[1752269930254,0.29385903,117590.0,117580.0,1.54375605]
[1752269930448,0.29385903,117590.0,117580.0,1.54475605]
[1752269931552,0.01783243,117590.0,117580.0,1.94961921]
[1752269931750,0.2872992,117610.0,117600.0,0.2539221]
[1752269931952,0.28157932,117610.0,117600.0,2.27816225]
[1752269932152,0.28157932,117610.0,117600.0,1.8781621]
[1752269932455,0.19017432,117610.0,117600.0,1.8781621]
[1752269932654,0.19017432,117610.0,117600.0,2.27816225]
[1752269932961,0.0914002,117630.0,117620.0,0.01689]
[1752269933166,0.2188718,117630.0,117620.0,1.8379832]
[1752269933362,0.2188718,117630.0,117620.0,2.23798335]
[1752269933567,0.21176076,117640.0,117630.0,0.2118087]
[1752269933568,0.34564286,117640.0,117630.0,0.2118087]
[1752269933867,0.23032686,117640.0,117630.0,0.97260885]
[1752269934567,0.23032686,117640.0,117630.0,0.5726087]
[1752269934864,0.23032686,117640.0,117630.0,0.97260885]
[1752269935060,0.1699343,117640.0,117630.0,0.97060885]
[1752269935257,0.1699343,117640.0,117630.0,0.5696087]
[1752269935463,0.1699343,117640.0,117630.0,0.96960885]
[1752269935866,0.1699343,117640.0,117630.0,0.5696087]
[1752269936066,0.1709343,117640.0,117630.0,1.46960885]
[1752269939970,0.1709343,117640.0,117630.0,1.30266015]
[1752269940160,0.1709343,117640.0,117630.0,1.47260885]
[1752269941463,0.1709343,117640.0,117630.0,1.30366015]
[1752269941667,0.1709343,117640.0,117630.0,1.47360885]
[1752269941966,0.27720276,117640.0,117630.0,1.35884167]
[1752269942167,0.32611276,117640.0,117630.0,1.35884167]
[1752269943871,0.32611276,117640.0,117630.0,1.36268167]
[1752269944660,0.28058857,117640.0,117630.0,1.36268167]
[1752269945070,0.3237737,117640.0,117630.0,1.36268167]
[1752269945271,0.3237737,117640.0,117630.0,0.96268152]
[1752269945572,0.3237737,117640.0,117630.0,1.36268167]
[1752269946267,0.75697385,117640.0,117630.0,0.50484]
[1752269946472,1.13575035,117640.0,117630.0,1.13036]
[1752269947272,1.13575035,117640.0,117630.0,0.63036]
[1752269947675,0.7357502,117640.0,117630.0,0.63036]
[1752269947871,1.13575035,117640.0,117630.0,0.63036]
[1752269948678,1.13575035,117640.0,117630.0,0.62956]
[1752269949676,1.07500608,117640.0,117630.0,0.62956]
[1752269950174,1.15093642,117640.0,117630.0,0.62956]
[1752269954682,1.07500608,117640.0,117630.0,0.62956]
[1752269956082,0.2261132,117620.0,117610.0,1.1756]
[1752269956278,0.69429848,117620.0,117610.0,1.80096]
[1752269956780,1.05509848,117620.0,117610.0,1.1756]
[1752269956980,0.65509833,117620.0,117610.0,1.9708176]
[1752269957180,1.05509848,117620.0,117610.0,1.9746576]
[1752269957483,1.05509848,117620.0,117610.0,1.80668]
[1752269957684,1.05509848,117620.0,117610.0,1.80868]
[1752269957985,1.05509848,117620.0,117610.0,1.80484]
[1752269958283,1.05509848,117620.0,117610.0,1.80868]
[1752269958675,1.05509848,117620.0,117610.0,1.9786576]
[1752269961086,1.05509848,117620.0,117610.0,1.80868]
[1752269961285,1.11582646,117620.0,117610.0,1.80868]
[1752269961985,1.11582646,117620.0,117610.0,1.9786576]
[1752269962187,1.05509848,117620.0,117610.0,1.9786576]
[1752269964685,0.82514633,117620.0,117610.0,0.004]
[1752269964883,1.09295247,117620.0,117610.0,0.004]
[1752269965078,0.2255176,117610.0,117600.0,0.00170061]
[1752269965277,0.65255273,117610.0,117600.0,0.00170061]
[1752269965478,1.03327775,117610.0,117600.0,0.00170061]
[1752269965682,0.6332776,117610.0,117600.0,0.00170061]
[1752269966184,1.03327775,117610.0,117600.0,0.00170061]
[1752269966888,1.03727775,117610.0,117600.0,0.00170061]
[1752269967486,1.4392779,117610.0,117600.0,0.00170061]
[1752269967687,1.4392779,117610.0,117600.0,1e-08]
[1752269969485,1.03927775,117610.0,117600.0,1e-08]
[1752269969789,1.76876573,117610.0,117600.0,1e-08]
[1752269970187,1.3080376,117610.0,117600.0,1e-08]
[1752269970387,1.70803775,117610.0,117600.0,1e-08]
[1752269970789,1.6093419,117610.0,117600.0,1e-08]
[1752269971385,1.20934175,117610.0,117600.0,1e-08]
[1752269972684,1.03927775,117610.0,117600.0,1e-08]
[1752269973694,1.70563775,117610.0,117600.0,1e-08]
[1752269973997,1.03927775,117610.0,117600.0,1e-08]
[1752269974291,1.03927775,117610.0,117600.0,1.33144001]
[1752269974986,0.6392776,117610.0,117600.0,1.33144001]
[1752269975188,1.03927775,117610.0,117600.0,1.33144001]
[1752269977889,0.6392776,117610.0,117600.0,1.33144001]
[1752269978090,1.03927775,117610.0,117600.0,1.33144001]
[1752269979888,1.03527775,117610.0,117600.0,1.33144001]
[1752269980198,1.04027775,117610.0,117600.0,1.33144001]
[1752269982590,0.6402776,117610.0,117600.0,1.33144001]
[1752269982790,1.04027775,117610.0,117600.0,1.33144001]
[1752269983890,1.03527775,117610.0,117600.0,1.33144001]
[1752269984094,1.04027775,117610.0,117600.0,1.33144001]
[1752269984494,1.03827775,117610.0,117600.0,1.33144001]
[1752269984696,1.04027775,117610.0,117600.0,1.33144001]
[1752269988803,1.03527775,117610.0,117600.0,1.33144001]
[1752269989003,1.04027775,117610.0,117600.0,1.33144001]
[1752269989309,1.03927775,117610.0,117600.0,1.33144001]
[1752269989490,1.03427775,117610.0,117600.0,1.33144001]
[1752269989794,1.03727775,117610.0,117600.0,1.33144001]
[1752269991299,0.6372776,117610.0,117600.0,1.90527216]
[1752269991509,0.6372776,117610.0,117600.0,1.50527201]
[1752269991710,1.03727775,117610.0,117600.0,1.50527201]
[1752269992094,0.98173775,117610.0,117600.0,1.50527201]
[1752269992295,1.00656775,117610.0,117600.0,2.00527201]
[1752269993005,1.0255394,117610.0,117600.0,2.00527201]
[1752269993200,1.0564694,117610.0,117600.0,2.00527201]
[1752269994703,1.11719738,117610.0,117600.0,2.00527201]
[1752269995206,1.0564694,117610.0,117600.0,2.00527201]
[1752269995708,0.26473925,117610.0,117600.0,2.00527201]
[1752269997212,0.26373925,117610.0,117600.0,2.00527201]
[1752269997399,0.26473925,117610.0,117600.0,2.00527201]
[1752269998008,0.26373925,117610.0,117600.0,2.00527201]
[1752269999710,0.6946694,117610.0,117600.0,0.50000001]
[1752269999912,1.0554694,117610.0,117600.0,1.15132001]
[1752270000100,1.0544694,117610.0,117600.0,1.15132001]
[1752270000307,0.71519723,117610.0,117600.0,0.39459561]
[1752270000608,1.0544694,117610.0,117600.0,0.39459561]
[1752270000806,1.0544694,117610.0,117590.0,0.84192178]
[1752270000807,0.274562,117600.0,117590.0,0.84192178]
[1752270001004,0.23777365,117600.0,117590.0,1.20272178]
[1752270001312,0.18512365,117600.0,117590.0,2.02279393]
[1752270001606,0.18512365,117600.0,117590.0,1.77279393]
[1752270002512,0.18512365,117600.0,117590.0,2.27279393]
[1752270002814,0.18512365,117600.0,117590.0,2.27379393]
[1752270003409,0.18612365,117600.0,117590.0,2.27379393]
[1752270003918,0.18612365,117600.0,117590.0,1.87379378]
[1752270004214,0.18612365,117600.0,117590.0,2.27379393]
[1752270008015,0.18612365,117600.0,117590.0,1.87379378]
[1752270008214,0.18612365,117600.0,117590.0,2.27379393]
[1752270008712,0.6906938,117600.0,117590.0,0.87791528]
[1752270009013,1.06914393,117600.0,117590.0,1.16723528]
[1752270009407,1.06914393,117600.0,117590.0,0.66723528]
[1752270009609,1.06914393,117600.0,117590.0,0.01711528]
[1752270009814,1.06914393,117600.0,117590.0,0.66679528]
[1752270010113,1.06914393,117600.0,117590.0,0.65068]
[1752270013013,1.0514938,117600.0,117590.0,0.65068]
[1752270013711,1.0514938,117600.0,117590.0,0.8206865]
[1752270013910,0.65149365,117600.0,117590.0,0.8206865]
[1752270014114,1.0514938,117600.0,117590.0,0.8206865]
[1752270014415,0.1700065,117590.0,117580.0,1.18217505]
[1752270014613,1.0543483,117590.0,117580.0,2.49114255]
[1752270014813,1.0543483,117590.0,117580.0,2.47785505]
[1752270015014,0.65434815,117590.0,117580.0,2.47785505]
[1752270015216,1.0543483,117590.0,117580.0,2.47785505]
[1752270015819,1.0543483,117590.0,117580.0,2.47885505]
[1752270016022,1.0543483,117590.0,117580.0,2.64887595]
[1752270016221,1.0543483,117590.0,117580.0,1.47319595]
[1752270016724,0.29354815,117590.0,117580.0,1.47319595]
[1752270017122,0.29354815,117590.0,117580.0,1.48648321]
[1752270017424,0.29354815,117590.0,117580.0,1.47319595]
[1752270017618,0.6935483,117590.0,117580.0,1.47319595]
[1752270017829,0.29354815,117590.0,117580.0,1.47319595]
[1752270018124,0.29354815,117590.0,117580.0,1.47419595]
[1752270018513,0.29354815,117590.0,117580.0,1.8741961]
[1752270018715,0.01897165,117590.0,117580.0,2.2349961]
[1752270018915,0.01942575,117600.0,117580.0,2.5275653]
[1752270019228,0.01942575,117600.0,117590.0,0.93080665]
[1752270019621,0.02142922,117610.0,117600.0,0.1699921]
[1752270019820,0.02142922,117610.0,117600.0,3.40027225]
[1752270021126,0.02142922,117610.0,117600.0,3.90027225]
[1752270023927,0.19240682,117610.0,117600.0,3.90027225]
[1752270024124,0.02242922,117610.0,117600.0,3.90027225]
[1752270024626,0.19240682,117610.0,117600.0,3.89927225]
[1752270025125,0.26079682,117610.0,117600.0,3.89927225]
[1752270025624,0.2433676,117610.0,117600.0,3.89927225]
[1752270028434,0.07339,117610.0,117600.0,3.89927225]
[1752270028623,0.005,117610.0,117600.0,3.89927225]
[1752270029022,0.005,117610.0,117600.0,4.2992724]
[1752270029531,0.2808378,117630.0,117620.0,0.1699631]
[1752270029732,0.3137278,117630.0,117620.0,1.83118301]
[1752270031224,0.3177278,117630.0,117620.0,1.83118301]
[1752270031832,0.3197278,117630.0,117620.0,2.33118301]
[1752270032632,0.07439,117630.0,117620.0,2.73118316]
[1752270032932,0.2443387,117630.0,117620.0,2.73118316]
[1752270034131,0.07439,117630.0,117620.0,2.80069739]
[1752270034336,0.2443387,117630.0,117620.0,2.80069739]
[1752270035235,0.2217487,117630.0,117620.0,2.80069739]
[1752270035534,0.2443387,117630.0,117620.0,2.80069739]
[1752270036837,0.2433387,117630.0,117620.0,2.80069739]
[1752270037138,0.2207487,117630.0,117620.0,2.80069739]
[1752270037533,0.1749487,117630.0,117620.0,2.80069739]
[1752270038032,0.001,117630.0,117620.0,2.80069739]
[1752270038236,0.003,117630.0,117620.0,2.80069739]
[1752270038735,0.001,117630.0,117620.0,2.80069739]
[1752270039037,0.002,117630.0,117620.0,2.80069739]
[1752270039837,0.001,117630.0,117620.0,2.80069739]
[1752270044454,0.001,117630.0,117620.0,2.80169739]
[1752270045247,0.3561976,117640.0,117630.0,0.1699487]
[1752270045442,0.3561976,117640.0,117630.0,0.93074885]
[1752270046149,0.3137107,117640.0,117630.0,0.93074885]
[1752270046448,0.2712259,117640.0,117630.0,0.93074885]
[1752270046649,0.2712259,117640.0,117630.0,1.43074885]
[1752270048353,0.2722259,117640.0,117630.0,1.43074885]
[1752270049742,0.06939,117640.0,117630.0,1.43074885]
[1752270050450,0.2393242,117640.0,117630.0,1.43074885]
[1752270051553,0.1709342,117640.0,117630.0,1.43074885]
[1752270051756,0.001,117640.0,117630.0,1.43074885]
[1752270052243,0.05025,117640.0,117630.0,1.43074885]
[1752270052448,0.07323,117640.0,117630.0,1.43074885]
[1752270054256,0.07323,117640.0,117630.0,1.0307487]
[1752270054555,0.07323,117640.0,117630.0,1.43074885]
[1752270055156,0.07323,117640.0,117630.0,1.0307487]
[1752270055356,0.07323,117640.0,117630.0,1.43074885]
[1752270057057,0.001,117640.0,117630.0,1.43074885]
[1752270060161,0.07323,117640.0,117630.0,1.43074885]
[1752270061250,0.2752342,117640.0,117630.0,1.44402917]
[1752270063656,0.2752342,117640.0,117630.0,1.04402902]
[1752270064760,0.67523435,117640.0,117630.0,1.0307487]
[1752270064962,2.957301,117640.0,117630.0,0.4249]
[1752270065158,0.1699776,117610.0,117600.0,0.07425061]
[1752270065462,0.1699776,117610.0,117600.0,0.00170061]
[1752270065463,2.60686573,117610.0,117600.0,0.00170061]
[1752270065759,3.044406,117610.0,117600.0,0.00170061]
[1752270066258,3.044406,117610.0,117600.0,0.00470061]
[1752270066456,3.044406,117610.0,117600.0,0.00770061]
[1752270067065,2.98367802,117610.0,117600.0,0.00770061]
[1752270067368,3.0443585,117610.0,117600.0,0.00770061]
[1752270067567,3.0443585,117610.0,117600.0,0.00470061]
[1752270067762,3.0453585,117610.0,117600.0,0.00470061]
[1752270068260,3.44535865,117610.0,117600.0,0.00470061]
[1752270068856,3.45018787,117610.0,117600.0,0.00470061]
[1752270071267,3.45018787,117610.0,117600.0,0.00170061]
[1752270071268,3.39150739,117610.0,117600.0,0.00170061]
[1752270072166,2.99150724,117610.0,117600.0,0.00170061]
[1752270072361,2.99150724,117610.0,117600.0,1e-08]
[1752270073160,3.39195984,117610.0,117600.0,1e-08]
[1752270073870,3.45264032,117610.0,117600.0,1e-08]
[1752270074768,3.39195984,117610.0,117600.0,1e-08]
[1752270075766,3.39194146,117610.0,117600.0,1e-08]
[1752270076165,3.39194146,117610.0,117580.0,0.00649505]
[1752270076468,1.29160665,117590.0,117580.0,5e-08]
[1752270076768,2.57543851,117590.0,117580.0,5e-08]
[1752270076970,2.99552651,117590.0,117580.0,5e-08]
[1752270078767,0.1700354,117570.0,117560.0,0.07519119]
[1752270078970,2.19725128,117570.0,117560.0,0.07519119]
[1752270079873,1.81525336,117570.0,117560.0,0.07519119]
[1752270080076,2.19731778,117570.0,117560.0,0.10814119]
[1752270080467,2.19731778,117570.0,117560.0,0.11214119]
[1752270081063,1.81524568,117570.0,117560.0,0.11214119]
[1752270081265,1.81524568,117570.0,117560.0,0.28419109]
[1752270081970,2.21524583,117570.0,117560.0,0.08119119]
[1752270082170,2.21524583,117570.0,117560.0,0.07919119]
[1752270082374,2.21524583,117570.0,117560.0,0.00570119]
[1752270083375,0.20596568,117570.0,117560.0,0.00570119]
[1752270083571,0.56676568,117570.0,117560.0,0.10599119]